[Event "56th Biel Festival MTO 2023"]
[White "Collin,Moritz Valentin"]
[Black "Toktomushev,Teimur"]
[Site "Biel"]
[Round "8.38"]
[Annotator "ChessBase"]
[Result "1-0"]
[Date "2023.07.26"]
[WhiteElo "2132"]
[BlackElo "2206"]
[PlyCount "79"]
[TimeControl "60"]

1. d4 {[%emt 0:0:0]} d5 {[%emt 0:0:0]} 2. c4 {[%emt 0:0:0]} e6 {[%emt 0:0:0]} 3. Nc3 {[%emt 0:0:0]} Nf6 {[%emt 0:0:0]} 4. cxd5 {[%emt 0:0:0]} exd5 {[%emt 0:0:0]} 5. Bg5 {[%emt 0:0:0]} Be7 {[%emt 0:0:0]} 6. e3 {[%emt 0:0:0]} h6 {[%emt 0:0:0]} 7. Bh4 {[%emt 0:0:0]} Bg4 {[%emt 0:0:0]} 8. Qc2 {[%emt 0:0:0]} O-O {[%emt 0:0:0]} 9. Bd3 {[%emt 0:0:0]} Nbd7 {[%emt 0:0:0]} 10. f3 {[%emt 0:3:31]} Be6 {[%emt 0:0:0]} 11. Nge2 {[%emt 0:1:28]} c5 {[%emt 0:2:58]} 12. O-O {[%emt 0:1:29]} Re8 {[%emt 0:1:50]} 13. Rad1 {[%emt 0:8:27]} Rc8 {[%emt 0:8:58]} 14. Kh1 {[%emt 0:10:29]} Qa5 {[%emt 0:34:40]} 15. a3 {[%emt 0:0:30]} Ng4 {[%emt 0:0:30]} 16. Bf2 {[%emt 0:37:0]} Nxf2+ {[%emt 0:0:22]} 17. Rxf2 {[%emt 0:11:17]} Nb6 {[%emt 0:39:53]} 18. Nc1 {[%emt 0:25:19]} c4 {[%emt 0:10:19]} 19. Bh7+ {[%emt 0:0:30]} Kh8 {[%emt 0:0:30]} 20. N1e2 {[%emt 0:0:30]} g6 {[%emt 0:0:30]} 21. Bxg6 {[%emt 0:0:30]} fxg6 {[%emt 0:0:30]} 22. Qxg6 {[%emt 0:0:30]} Bf8 {[%emt 0:0:30]} 23. Nf4 {[%emt 0:0:30]} Bd7 {[%emt 0:0:30]} 24. g4 {[%emt 0:0:30]} Rc6 {[%emt 0:0:30]} 25. Qf7 {[%emt 0:0:30]} Bg7 {[%emt 0:0:30]} 26. g5 {[%emt 0:0:30]} Rf8 {[%emt 0:0:30]} 27. Ng6+ {[%emt 0:0:30]} Rxg6 {[%emt 0:0:30]} 28. Qxg6 {[%emt 0:0:30]} Be8 {[%emt 0:0:30]} 29. Qe6 {[%emt 0:0:30]} Bf7 {[%emt 0:0:30]} 30. Qf5 {[%emt 0:0:30]} Bg8 {[%emt 0:0:30]} 31. Qh3 {[%emt 0:0:30]} Nc8 {[%emt 0:0:30]} 32. gxh6 {[%emt 0:0:30]} Bf6 {[%emt 0:0:30]} 33. e4 {[%emt 0:0:30]} Qd8 {[%emt 0:0:30]} 34. e5 {[%emt 0:0:30]} Bg5 {[%emt 0:0:30]} 35. f4 {[%emt 0:0:30]} Rxf4 {[%emt 0:0:30]} 36. Rxf4 {[%emt 0:0:30]} Bxf4 {[%emt 0:0:30]} 37. Rf1 {[%emt 0:0:30]} Qg5 {[%emt 0:0:30]} 38. h7 {[%emt 0:0:30]} Bf7 {[%emt 0:0:30]} 39. Qxc8+ {[%emt 0:0:30]} Kxh7 {[%emt 0:0:30]} 40. Qd7 {[%emt 0:0:30]} 1-0

[Event "56th Biel Festival MTO 2023"]
[White "Vincenti,Leonardo"]
[Black "Ludwig,Peter"]
[Site "Biel"]
[Round "8.39"]
[Annotator "ChessBase"]
[Result "1-0"]
[Date "2023.07.26"]
[WhiteElo "2117"]
[BlackElo "2147"]
[PlyCount "109"]
[TimeControl "60"]

1. e4 {[%emt 0:0:0]} e6 {[%emt 0:0:0]} 2. d4 {[%emt 0:0:0]} d5 {[%emt 0:0:0]} 3. Nd2 {[%emt 0:0:0]} c5 {[%emt 0:0:0]} 4. Ngf3 {[%emt 0:0:0]} cxd4 {[%emt 0:0:0]} 5. Nxd4 {[%emt 0:0:0]} Nc6 {[%emt 0:0:0]} 6. Bb5 {[%emt 0:0:0]} Bd7 {[%emt 0:0:0]} 7. Nxc6 {[%emt 0:0:0]} bxc6 {[%emt 0:0:0]} 8. Bd3 {[%emt 0:0:0]} Qc7 {[%emt 0:0:0]} 9. Qe2 {[%emt 0:0:0]} Ne7 {[%emt 0:0:0]} 10. c4 {[%emt 0:0:0]} Ng6 {[%emt 0:0:0]} 11. O-O {[%emt 0:12:2]} Nf4 {[%emt 0:2:28]} 12. Qe3 {[%emt 0:2:54]} Nxd3 {[%emt 0:8:33]} 13. Qxd3 {[%emt 0:0:14]} Bd6 {[%emt 0:0:10]} 14. h3 {[%emt 0:7:18]} O-O {[%emt 0:0:57]} 15. Rd1 {[%emt 0:4:16]} Rfd8 {[%emt 0:4:39]} 16. Nb3 {[%emt 0:8:44]} Bh2+ {[%emt 0:3:55]} 17. Kh1 {[%emt 0:1:47]} Be5 {[%emt 0:2:53]} 18. Bd2 {[%emt 0:7:21]} Bxb2 {[%emt 0:6:14]} 19. Rab1 {[%emt 0:2:2]} Bf6 {[%emt 0:0:50]} 20. Ba5 {[%emt 0:1:15]} Qf4 {[%emt 0:0:5]} 21. Bxd8 {[%emt 0:2:0]} Rxd8 {[%emt 0:8:24]} 22. Qe3 {[%emt 0:7:30]} Qh4 {[%emt 0:6:28]} 23. cxd5 {[%emt 0:3:53]} exd5 {[%emt 0:0:11]} 24. exd5 {[%emt 0:0:7]} Bg5 {[%emt 0:8:8]} 25. Qf3 {[%emt 0:8:26]} cxd5 {[%emt 0:6:1]} 26. Rxd5 {[%emt 0:0:2]} Be6 {[%emt 0:0:35]} 27. Rxd8+ {[%emt 0:0:32]} Bxd8 {[%emt 0:0:5]} 28. Rd1 {[%emt 0:1:6]} Kf8 {[%emt 0:0:50]} 29. Qa8 {[%emt 0:0:17]} Ke8 {[%emt 0:0:11]} 30. Nc5 {[%emt 0:1:59]} Bxh3 {[%emt 0:1:26]} 31. Kg1 {[%emt 0:7:45]} Bg4 {[%emt 0:4:15]} 32. Re1+ {[%emt 0:0:16]} Be6 {[%emt 0:0:5]} 33. Qc6+ {[%emt 0:2:22]} Kf8 {[%emt 0:1:31]} 34. Nxe6+ {[%emt 0:0:17]} fxe6 {[%emt 0:0:12]} 35. Qxe6 {[%emt 0:2:1]} Be7 {[%emt 0:0:13]} 36. Re3 {[%emt 0:0:38]} Qb4 {[%emt 0:3:1]} 37. Rb3 {[%emt 0:0:9]} Qd6 {[%emt 0:0:24]} 38. Qxd6 {[%emt 0:0:32]} Bxd6 {[%emt 0:0:6]} 39. Rb7 {[%emt 0:0:5]} Bc5 {[%emt 0:0:8]} 40. Kf1 {[%emt 0:0:5]} h6 {[%emt 0:2:13]} 41. Ke2 {[%emt 0:30:20]} Kg8 {[%emt 0:30:11]} 42. a4 {[%emt 0:0:18]} Kh7 {[%emt 0:0:21]} 43. a5 {[%emt 0:0:20]} Kg6 {[%emt 0:0:8]} 44. f3 {[%emt 0:0:34]} Kf6 {[%emt 0:0:22]} 45. Kd3 {[%emt 0:0:5]} h5 {[%emt 0:1:1]} 46. Kc4 {[%emt 0:0:33]} Be3 {[%emt 0:1:0]} 47. Kb5 {[%emt 0:0:44]} g5 {[%emt 0:0:24]} 48. Ka6 {[%emt 0:0:7]} Kf5 {[%emt 0:0:32]} 49. Rf7+ {[%emt 0:1:16]} Ke5 {[%emt 0:0:10]} 50. Rxa7 {[%emt 0:0:9]} Kf4 {[%emt 0:0:36]} 51. Re7 {[%emt 0:1:1]} Bf2 {[%emt 0:0:10]} 52. Rh7 {[%emt 0:2:51]} h4 {[%emt 0:0:10]} 53. Rg7 {[%emt 0:0:22]} Be3 {[%emt 0:0:8]} 54. Re7 {[%emt 0:1:33]} Bf2 {[%emt 0:0:17]} 55. Re4+ {[%emt 0:0:9]} 1-0

[Event "56th Biel Festival MTO 2023"]
[White "Ehsani,Yassamin"]
[Black "Misiano,Franco"]
[Site "Biel"]
[Round "8.40"]
[Annotator "ChessBase"]
[Result "1-0"]
[Date "2023.07.26"]
[WhiteElo "2106"]
[BlackElo "2133"]
[PlyCount "101"]
[TimeControl "60"]

1. d4 {[%emt 0:0:0]} d5 {[%emt 0:0:0]} 2. c4 {[%emt 0:0:0]} c6 {[%emt 0:0:0]} 3. Nc3 {[%emt 0:0:0]} Nf6 {[%emt 0:0:0]} 4. e3 {[%emt 0:0:0]} e6 {[%emt 0:0:0]} 5. Nf3 {[%emt 0:13:42]} Nbd7 {[%emt 0:0:0]} 6. Be2 {[%emt 0:0:30]} Bd6 {[%emt 0:0:0]} 7. O-O {[%emt 0:0:30]} O-O {[%emt 0:0:0]} 8. Qc2 {[%emt 0:0:30]} b6 {[%emt 0:0:0]} 9. e4 {[%emt 0:0:30]} dxe4 {[%emt 0:0:0]} 10. Nxe4 {[%emt 0:0:30]} Nxe4 {[%emt 0:0:0]} 11. Qxe4 {[%emt 0:0:30]} Bb7 {[%emt 0:0:0]} 12. b4 {[%emt 0:0:30]} Nf6 {[%emt 0:0:0]} 13. Qc2 {[%emt 0:3:23]} c5 {[%emt 0:0:0]} 14. dxc5 {[%emt 0:5:50]} bxc5 {[%emt 0:0:0]} 15. b5 {[%emt 0:4:59]} Qc7 {[%emt 0:0:0]} 16. h3 {[%emt 0:4:59]} Rad8 {[%emt 0:2:16]} 17. Bb2 {[%emt 0:3:55]} Ne4 {[%emt 0:1:5]} 18. Bd3 {[%emt 0:6:55]} f5 {[%emt 0:0:12]} 19. Bxe4 {[%emt 0:14:0]} Bxe4 {[%emt 0:0:21]} 20. Qc3 {[%emt 0:0:30]} h6 {[%emt 0:0:58]} 21. Ne5 {[%emt 0:1:58]} Bxe5 {[%emt 0:2:4]} 22. Qxe5 {[%emt 0:0:5]} Qxe5 {[%emt 0:0:22]} 23. Bxe5 {[%emt 0:1:45]} Bd3 {[%emt 0:0:41]} 24. Rfc1 {[%emt 0:0:33]} f4 {[%emt 0:0:12]} 25. a4 {[%emt 0:6:35]} Rf5 {[%emt 0:0:36]} 26. Bc7 {[%emt 0:1:23]} Rd7 {[%emt 0:2:6]} 27. Rd1 {[%emt 0:5:14]} Rff7 {[%emt 0:5:46]} 28. a5 {[%emt 0:2:9]} Bxc4 {[%emt 0:0:18]} 29. Rxd7 {[%emt 0:7:8]} Rxd7 {[%emt 0:0:7]} 30. b6 {[%emt 0:0:4]} axb6 {[%emt 0:0:24]} 31. axb6 {[%emt 0:0:5]} Bd5 {[%emt 0:0:11]} 32. Rd1 {[%emt 0:0:33]} Re7 {[%emt 0:1:55]} 33. Rxd5 {[%emt 0:3:28]} exd5 {[%emt 0:0:11]} 34. b7 {[%emt 0:0:3]} Re1+ {[%emt 0:0:11]} 35. Kh2 {[%emt 0:0:4]} Rb1 {[%emt 0:0:9]} 36. b8=Q+ {[%emt 0:0:7]} Rxb8 {[%emt 0:0:4]} 37. Bxb8 {[%emt 0:0:6]} g5 {[%emt 0:0:5]} 38. Ba7 {[%emt 0:7:31]} c4 {[%emt 0:2:9]} 39. Bd4 {[%emt 0:0:5]} Kf7 {[%emt 0:0:0]} 40. f3 {[%emt 0:4:2]} Ke6 {[%emt 0:2:46]} 41. Kg1 {[%emt 0:30:57]} h5 {[%emt 0:31:46]} 42. Kf2 {[%emt 0:0:16]} Kf5 {[%emt 0:0:27]} 43. Ke2 {[%emt 0:0:35]} g4 {[%emt 0:0:38]} 44. h4 {[%emt 0:0:25]} Ke6 {[%emt 0:0:31]} 45. Kd2 {[%emt 0:0:20]} gxf3 {[%emt 0:0:21]} 46. gxf3 {[%emt 0:0:5]} Kd6 {[%emt 0:0:5]} 47. Kc3 {[%emt 0:0:16]} Kc6 {[%emt 0:0:26]} 48. Kb4 {[%emt 0:0:13]} Kd6 {[%emt 0:0:9]} 49. Kb5 {[%emt 0:0:17]} Kd7 {[%emt 0:1:3]} 50. Kc5 {[%emt 0:0:9]} Ke6 {[%emt 0:0:5]} 51. Kc6 {[%emt 0:0:14]} 1-0

[Event "56th Biel Festival MTO 2023"]
[White "Hornung,Hans"]
[Black "Ribiere,Damien"]
[Site "Biel"]
[Round "8.41"]
[Annotator "ChessBase"]
[Result "0-1"]
[Date "2023.07.26"]
[WhiteElo "2047"]
[BlackElo "2213"]
[PlyCount "76"]
[TimeControl "60"]

1. e4 {[%emt 0:0:0]} e5 {[%emt 0:0:0]} 2. Nf3 {[%emt 0:0:0]} Nc6 {[%emt 0:0:0]} 3. Bc4 {[%emt 0:0:0]} Nf6 {[%emt 0:0:0]} 4. d3 {[%emt 0:0:0]} h6 {[%emt 0:0:0]} 5. O-O {[%emt 0:0:0]} d6 {[%emt 0:0:0]} 6. c3 {[%emt 0:0:0]} g6 {[%emt 0:0:0]} 7. d4 {[%emt 0:0:0]} Bg4 {[%emt 0:0:0]} 8. Qb3 {[%emt 0:5:22]} Na5 {[%emt 0:0:0]} 9. Qa4+ {[%emt 0:1:16]} c6 {[%emt 0:0:0]} 10. Be2 {[%emt 0:1:39]} b5 {[%emt 0:0:41]} 11. Qc2 {[%emt 0:4:49]} Bxf3 {[%emt 0:0:49]} 12. Bxf3 {[%emt 0:0:10]} Bg7 {[%emt 0:0:6]} 13. dxe5 {[%emt 0:6:2]} dxe5 {[%emt 0:0:4]} 14. Rd1 {[%emt 0:0:51]} Qc7 {[%emt 0:1:29]} 15. a4 {[%emt 0:4:9]} O-O {[%emt 0:0:31]} 16. Na3 {[%emt 0:1:42]} a6 {[%emt 0:2:23]} 17. b4 {[%emt 0:1:11]} Nb7 {[%emt 0:0:20]} 18. Be3 {[%emt 0:5:39]} Rfc8 {[%emt 0:7:11]} 19. h3 {[%emt 0:10:31]} h5 {[%emt 0:3:29]} 20. g4 {[%emt 0:6:11]} hxg4 {[%emt 0:3:20]} 21. hxg4 {[%emt 0:7:23]} Qe7 {[%emt 0:0:59]} 22. Qe2 {[%emt 0:2:41]} Nh7 {[%emt 0:1:49]} 23. Nc2 {[%emt 0:8:45]} Nd8 {[%emt 0:5:35]} 24. c4 {[%emt 0:3:55]} bxc4 {[%emt 0:2:26]} 25. Qxc4 {[%emt 0:0:13]} Ne6 {[%emt 0:0:12]} 26. Bg2 {[%emt 0:2:9]} Qh4 {[%emt 0:3:44]} 27. f3 {[%emt 0:3:34]} Nhg5 {[%emt 0:4:54]} 28. Bf2 {[%emt 0:6:3]} Nh3+ {[%emt 0:1:39]} 29. Bxh3 {[%emt 0:0:14]} Qxh3 {[%emt 0:0:4]} 30. Ne1 {[%emt 0:0:47]} Nd4 {[%emt 0:5:5]} 31. Bxd4 {[%emt 0:2:2]} exd4 {[%emt 0:0:24]} 32. Rd3 {[%emt 0:0:17]} Qg3+ {[%emt 0:2:21]} 33. Ng2 {[%emt 0:0:55]} a5 {[%emt 0:2:13]} 34. bxa5 {[%emt 0:1:46]} Rxa5 {[%emt 0:0:55]} 35. Rb1 {[%emt 0:0:21]} Ra7 {[%emt 0:1:49]} 36. Rbb3 {[%emt 0:3:40]} c5 {[%emt 0:1:31]} 37. Rb5 {[%emt 0:1:11]} Rca8 {[%emt 0:2:1]} 38. Qxc5 {[%emt 0:10:29]} Rxa4 {[%emt 0:0:19]} 0-1

[Event "56th Biel Festival MTO 2023"]
[White "Stijve,Niels"]
[Black "Perkampus,Laurin"]
[Site "Biel"]
[Round "8.42"]
[Annotator "ChessBase"]
[Result "1/2-1/2"]
[Date "2023.07.26"]
[WhiteElo "2088"]
[BlackElo "2197"]
[PlyCount "154"]
[TimeControl "60"]

1. e4 {[%emt 0:0:0]} c6 {[%emt 0:0:0]} 2. Nf3 {[%emt 0:0:0]} d5 {[%emt 0:0:0]} 3. Nc3 {[%emt 0:0:0]} Bg4 {[%emt 0:0:0]} 4. h3 {[%emt 0:0:0]} Bxf3 {[%emt 0:0:0]} 5. Qxf3 {[%emt 0:0:0]} e6 {[%emt 0:0:0]} 6. d4 {[%emt 0:0:0]} Nf6 {[%emt 0:0:0]} 7. exd5 {[%emt 0:4:40]} cxd5 {[%emt 0:0:0]} 8. Bf4 {[%emt 0:17:4]} a6 {[%emt 0:0:0]} 9. g4 {[%emt 0:11:59]} Bd6 {[%emt 0:23:19]} 10. g5 {[%emt 0:9:47]} Bxf4 {[%emt 0:8:53]} 11. Qxf4 {[%emt 0:0:39]} Nfd7 {[%emt 0:10:1]} 12. Bd3 {[%emt 0:14:40]} Nc6 {[%emt 0:1:52]} 13. O-O {[%emt 0:4:22]} h6 {[%emt 0:8:17]} 14. gxh6 {[%emt 0:23:58]} Rxh6 {[%emt 0:2:13]} 15. Rae1 {[%emt 0:1:44]} Kf8 {[%emt 0:12:3]} 16. Re3 {[%emt 0:2:44]} e5 {[%emt 0:13:58]} 17. dxe5 {[%emt 0:2:40]} g5 {[%emt 0:2:26]} 18. Qf5 {[%emt 0:2:56]} d4 {[%emt 0:1:34]} 19. e6 {[%emt 0:0:51]} Rf6 {[%emt 0:2:6]} 20. exd7 {[%emt 0:1:27]} dxe3 {[%emt 0:1:42]} 21. Qh7 {[%emt 0:0:14]} exf2+ {[%emt 0:2:52]} 22. Kg2 {[%emt 0:0:24]} Ne7 {[%emt 0:3:7]} 23. Ne4 {[%emt 0:0:50]} Rg6 {[%emt 0:0:59]} 24. Rxf2 {[%emt 0:0:52]} Rg7 {[%emt 0:1:10]} 25. Qh8+ {[%emt 0:0:27]} Ng8 {[%emt 0:0:57]} 26. Nf6 {[%emt 0:0:7]} Qb6 {[%emt 0:2:17]} 27. Nh7+ {[%emt 0:0:59]} Rxh7 {[%emt 0:0:36]} 28. Qxh7 {[%emt 0:0:1]} Qc6+ {[%emt 0:0:44]} 29. Be4 {[%emt 0:0:48]} Qxd7 {[%emt 0:0:29]} 30. c4 {[%emt 0:0:41]} Re8 {[%emt 0:0:47]} 31. Bd5 {[%emt 0:0:33]} Re7 {[%emt 0:1:9]} 32. Qg6 {[%emt 0:0:14]} Re2 {[%emt 0:1:10]} 33. Qxg5 {[%emt 0:0:36]} Rxf2+ {[%emt 0:0:11]} 34. Kxf2 {[%emt 0:0:2]} Qxh3 {[%emt 0:1:21]} 35. Qd8+ {[%emt 0:0:39]} Kg7 {[%emt 0:0:4]} 36. Qg5+ {[%emt 0:0:20]} Kf8 {[%emt 0:0:18]} 37. Bxb7 {[%emt 0:0:28]} Qd3 {[%emt 0:1:27]} 38. Qc5+ {[%emt 0:1:2]} Ne7 {[%emt 0:0:20]} 39. Qb4 {[%emt 0:0:34]} Qc2+ {[%emt 0:1:6]} 40. Kf3 {[%emt 0:0:33]} Qd3+ {[%emt 0:0:23]} 41. Kf2 {[%emt 0:0:0]} Qc2+ {[%emt 0:0:0]} 42. Ke3 {[%emt 0:0:0]} Qc1+ {[%emt 0:0:0]} 43. Kd3 {[%emt 0:0:0]} Qb1+ {[%emt 0:0:0]} 44. Kc3 {[%emt 0:0:0]} Qxa2 {[%emt 0:3:3]} 45. Qd6 {[%emt 0:4:55]} Qa5+ {[%emt 0:1:9]} 46. Kb3 {[%emt 0:2:38]} Ke8 {[%emt 0:5:30]} 47. Bxa6 {[%emt 0:6:5]} Nf5 {[%emt 0:0:38]} 48. Qb8+ {[%emt 0:3:49]} Ke7 {[%emt 0:2:34]} 49. Qb4+ {[%emt 0:1:38]} Qxb4+ {[%emt 0:0:6]} 50. Kxb4 {[%emt 0:0:5]} Kd6 {[%emt 0:5:52]} 51. Kb5 {[%emt 0:1:15]} Kc7 {[%emt 0:1:46]} 52. Kc5 {[%emt 0:0:25]} Ng7 {[%emt 0:11:40]} 53. Bb5 {[%emt 0:3:22]} Ne6+ {[%emt 0:0:33]} 54. Kd5 {[%emt 0:0:21]} Nf4+ {[%emt 0:0:28]} 55. Ke4 {[%emt 0:1:0]} Ne6 {[%emt 0:1:4]} 56. Ke5 {[%emt 0:2:30]} Nc5 {[%emt 0:0:34]} 57. Kd4 {[%emt 0:3:8]} Ne6+ {[%emt 0:0:41]} 58. Kd3 {[%emt 0:0:46]} Kd6 {[%emt 0:0:59]} 59. Be8 {[%emt 0:0:58]} f5 {[%emt 0:1:25]} 60. b4 {[%emt 0:4:37]} Nf4+ {[%emt 0:1:8]} 61. Ke3 {[%emt 0:1:53]} Ne6 {[%emt 0:0:0]} 62. Bf7 {[%emt 0:0:0]} f4+ {[%emt 0:0:0]} 63. Kd3 {[%emt 0:0:0]} Nc7 {[%emt 0:0:0]} 64. Bh5 {[%emt 0:0:0]} Na6 {[%emt 0:0:0]} 65. Kc3 {[%emt 0:0:0]} Nc7 {[%emt 0:1:7]} 66. Bf3 {[%emt 0:0:0]} Ne6 {[%emt 0:0:32]} 67. Bd5 {[%emt 0:0:0]} Nc7 {[%emt 0:0:49]} 68. Bb7 {[%emt 0:0:0]} Ne6 {[%emt 0:0:33]} 69. Kd3 {[%emt 0:0:0]} Ke5 {[%emt 0:1:15]} 70. Bd5 {[%emt 0:0:0]} Nd4 {[%emt 0:1:21]} 71. Bb7 {[%emt 0:2:50]} f3 {[%emt 0:0:29]} 72. c5 {[%emt 0:1:42]} f2 {[%emt 0:0:21]} 73. Bg2 {[%emt 0:0:7]} Nb3 {[%emt 0:0:59]} 74. Ke3 {[%emt 0:1:36]} Nxc5 {[%emt 0:0:21]} 75. bxc5 {[%emt 0:0:19]} f1=Q {[%emt 0:0:5]} 76. Bxf1 {[%emt 0:0:8]} Kd5 {[%emt 0:0:2]} 77. c6 {[%emt 0:0:8]} Kxc6 {[%emt 0:0:3]} 1/2-1/2

[Event "56th Biel Festival MTO 2023"]
[White "Coles,Robin"]
[Black "Ozcan,Kaan"]
[Site "Biel"]
[Round "8.43"]
[Annotator "ChessBase"]
[Result "1/2-1/2"]
[Date "2023.07.26"]
[WhiteElo "2070"]
[BlackElo "2196"]
[PlyCount "107"]
[TimeControl "60"]

1. e4 {[%emt 0:0:0]} c5 {[%emt 0:0:0]} 2. Nf3 {[%emt 0:0:0]} e6 {[%emt 0:0:0]} 3. g3 {[%emt 0:0:0]} Nc6 {[%emt 0:0:0]} 4. Bg2 {[%emt 0:0:0]} Nf6 {[%emt 0:0:0]} 5. Qe2 {[%emt 0:0:0]} e5 {[%emt 0:0:0]} 6. O-O {[%emt 0:0:0]} Be7 {[%emt 0:0:0]} 7. c3 {[%emt 0:0:0]} O-O {[%emt 0:0:0]} 8. Na3 {[%emt 0:0:0]} Re8 {[%emt 0:0:0]} 9. d3 {[%emt 0:0:0]} h6 {[%emt 0:0:0]} 10. Nc4 {[%emt 0:0:0]} Bf8 {[%emt 0:0:0]} 11. Ne3 {[%emt 0:0:24]} d5 {[%emt 0:4:22]} 12. exd5 {[%emt 0:6:2]} Nxd5 {[%emt 0:1:12]} 13. Rd1 {[%emt 0:3:4]} Nf4 {[%emt 0:6:37]} 14. gxf4 {[%emt 0:1:31]} exf4 {[%emt 0:0:5]} 15. Qf1 {[%emt 0:13:6]} fxe3 {[%emt 0:2:0]} 16. fxe3 {[%emt 0:1:4]} Bg4 {[%emt 0:2:8]} 17. e4 {[%emt 0:5:38]} Qf6 {[%emt 0:5:12]} 18. Re1 {[%emt 0:10:16]} Bd6 {[%emt 0:4:25]} 19. Be3 {[%emt 0:9:35]} Ne5 {[%emt 0:5:16]} 20. Nd2 {[%emt 0:1:55]} Qg6 {[%emt 0:1:33]} 21. d4 {[%emt 0:6:18]} cxd4 {[%emt 0:0:16]} 22. cxd4 {[%emt 0:0:33]} Nc6 {[%emt 0:0:5]} 23. e5 {[%emt 0:1:14]} Bb4 {[%emt 0:0:43]} 24. Qf2 {[%emt 0:8:22]} Rad8 {[%emt 0:3:8]} 25. Kh1 {[%emt 0:3:7]} Bxd2 {[%emt 0:2:59]} 26. Bxd2 {[%emt 0:0:46]} Nxd4 {[%emt 0:1:31]} 27. Bc3 {[%emt 0:3:21]} Ne6 {[%emt 0:3:28]} 28. Bxb7 {[%emt 0:3:15]} Qh5 {[%emt 0:2:39]} 29. Re3 {[%emt 0:4:9]} Ng5 {[%emt 0:2:7]} 30. Qg3 {[%emt 0:2:4]} Re7 {[%emt 0:4:2]} 31. Bg2 {[%emt 0:4:41]} Red7 {[%emt 0:1:47]} 32. Rae1 {[%emt 0:2:36]} Be6 {[%emt 0:2:56]} 33. a3 {[%emt 0:1:46]} Rc8 {[%emt 0:4:26]} 34. Rd3 {[%emt 0:5:2]} Rxd3 {[%emt 0:7:53]} 35. Qxd3 {[%emt 0:0:1]} Rc4 {[%emt 0:1:46]} 36. Bd4 {[%emt 0:2:17]} Rc7 {[%emt 0:8:31]} 37. Bf2 {[%emt 0:2:37]} Rd7 {[%emt 0:0:36]} 38. Qg3 {[%emt 0:0:13]} a5 {[%emt 0:4:40]} 39. b4 {[%emt 0:1:27]} axb4 {[%emt 0:3:39]} 40. axb4 {[%emt 0:0:9]} Bc4 {[%emt 0:12:1]} 41. Qh4 {[%emt 0:0:0]} Qxh4 {[%emt 0:0:0]} 42. Bxh4 {[%emt 0:0:0]} Ne6 {[%emt 0:0:0]} 43. Rc1 {[%emt 0:0:0]} g5 {[%emt 0:0:0]} 44. Bg3 {[%emt 0:0:24]} Bb5 {[%emt 0:0:0]} 45. Bf1 {[%emt 0:4:43]} Bxf1 {[%emt 0:0:0]} 46. Rxf1 {[%emt 0:1:46]} Rb7 {[%emt 0:0:0]} 47. Rb1 {[%emt 0:1:57]} Rb5 {[%emt 0:0:0]} 48. Be1 {[%emt 0:3:52]} Nd4 {[%emt 0:0:0]} 49. Bc3 {[%emt 0:2:32]} Nc6 {[%emt 0:0:0]} 50. Re1 {[%emt 0:6:35]} Kf8 {[%emt 0:4:44]} 51. e6 {[%emt 0:2:26]} fxe6 {[%emt 0:1:20]} 52. Rxe6 {[%emt 0:0:8]} Nxb4 {[%emt 0:0:35]} 53. Bxb4+ {[%emt 0:0:46]} Rxb4 {[%emt 0:0:5]} 54. Rxh6 {[%emt 0:0:6]} 1/2-1/2

[Event "56th Biel Festival MTO 2023"]
[White "Jaivardhan Raj"]
[Black "Foerster-Yialamas,Lucas"]
[Site "Biel"]
[Round "8.44"]
[Annotator "ChessBase"]
[Result "0-1"]
[Date "2023.07.26"]
[WhiteElo "2009"]
[BlackElo "2157"]
[PlyCount "54"]
[TimeControl "60"]

1. e4 {[%emt 0:0:0]} e5 {[%emt 0:0:0]} 2. d4 {[%emt 0:0:0]} exd4 {[%emt 0:0:0]} 3. Qxd4 {[%emt 0:0:0]} Nc6 {[%emt 0:0:0]} 4. Qe3 {[%emt 0:0:0]} Nf6 {[%emt 0:0:0]} 5. Nc3 {[%emt 0:0:0]} Bb4 {[%emt 0:0:0]} 6. Bd2 {[%emt 0:0:0]} O-O {[%emt 0:0:0]} 7. O-O-O {[%emt 0:0:0]} Re8 {[%emt 0:0:0]} 8. f3 {[%emt 0:0:0]} d5 {[%emt 0:0:0]} 9. Qf2 {[%emt 0:0:0]} dxe4 {[%emt 0:0:0]} 10. Bg5 {[%emt 0:0:0]} Bd7 {[%emt 0:0:0]} 11. Nd5 {[%emt 0:0:0]} e3 {[%emt 0:0:0]} 12. Qh4 {[%emt 0:0:0]} Bd2+ {[%emt 0:0:0]} 13. Kb1 {[%emt 0:0:0]} Bf5 {[%emt 0:0:0]} 14. Nxf6+ {[%emt 0:1:40]} gxf6 {[%emt 0:0:0]} 15. Bxf6 {[%emt 0:1:32]} Qd6 {[%emt 0:0:0]} 16. Qh6 {[%emt 0:7:45]} Qf8 {[%emt 0:0:0]} 17. Qg5+ {[%emt 0:3:7]} Bg6 {[%emt 0:0:0]} 18. f4 {[%emt 0:5:47]} Re6 {[%emt 0:0:0]} 19. Bc4 {[%emt 0:1:51]} h6 {[%emt 0:0:0]} 20. Qh4 {[%emt 0:2:50]} Qc5 {[%emt 0:18:13]} 21. Bb3 {[%emt 0:7:52]} Na5 {[%emt 0:2:8]} 22. Ka1 {[%emt 0:6:35]} Nxb3+ {[%emt 0:2:16]} 23. cxb3 {[%emt 0:0:22]} Ra6 {[%emt 0:0:15]} 24. f5 {[%emt 0:1:44]} Qxf5 {[%emt 0:2:7]} 25. Be7 {[%emt 0:1:49]} Qb5 {[%emt 0:7:47]} 26. Nf3 {[%emt 0:2:19]} Qxb3 {[%emt 0:0:14]} 27. a3 {[%emt 0:1:12]} Bc3 {[%emt 0:0:10]} 0-1

[Event "56th Biel Festival MTO 2023"]
[White "Jaksland,Tim"]
[Black "Rotunno,Flavio"]
[Site "Biel"]
[Round "8.45"]
[Annotator "ChessBase"]
[Result "1/2-1/2"]
[Date "2023.07.26"]
[WhiteElo "2136"]
[BlackElo "2005"]
[PlyCount "71"]
[TimeControl "60"]

1. e4 {[%emt 0:0:0]} c5 {[%emt 0:0:0]} 2. Nf3 {[%emt 0:0:0]} e6 {[%emt 0:0:0]} 3. b3 {[%emt 0:0:0]} a6 {[%emt 0:0:0]} 4. Bb2 {[%emt 0:0:0]} Nc6 {[%emt 0:0:0]} 5. g3 {[%emt 0:0:0]} d5 {[%emt 0:0:0]} 6. exd5 {[%emt 0:0:0]} exd5 {[%emt 0:0:0]} 7. Qe2+ {[%emt 0:0:0]} Qe7 {[%emt 0:0:0]} 8. Qxe7+ {[%emt 0:0:0]} Ngxe7 {[%emt 0:0:0]} 9. Bg2 {[%emt 0:0:0]} Nb4 {[%emt 0:2:22]} 10. Na3 {[%emt 0:0:0]} Bf5 {[%emt 0:1:49]} 11. O-O {[%emt 0:2:19]} Nxc2 {[%emt 0:9:39]} 12. Nxc2 {[%emt 0:6:19]} Bxc2 {[%emt 0:0:7]} 13. Rfc1 {[%emt 0:0:38]} Be4 {[%emt 0:0:40]} 14. d3 {[%emt 0:7:49]} Bxd3 {[%emt 0:22:44]} 15. Rxc5 {[%emt 0:0:27]} Be4 {[%emt 0:10:18]} 16. Rc7 {[%emt 0:2:39]} Rb8 {[%emt 0:10:54]} 17. Rac1 {[%emt 0:18:20]} Nc6 {[%emt 0:10:1]} 18. Ne5 {[%emt 0:38:10]} Nxe5 {[%emt 0:3:33]} 19. Bxe5 {[%emt 0:0:47]} f6 {[%emt 0:6:56]} 20. Bd4 {[%emt 0:1:0]} Ba3 {[%emt 0:7:16]} 21. Rc8+ {[%emt 0:12:54]} Kf7 {[%emt 0:3:10]} 22. R1c7+ {[%emt 0:2:50]} Kg6 {[%emt 0:0:8]} 23. Rxh8 {[%emt 0:0:38]} Rxh8 {[%emt 0:0:4]} 24. Rxb7 {[%emt 0:0:35]} Rc8 {[%emt 0:2:50]} 25. Bxe4+ {[%emt 0:1:16]} dxe4 {[%emt 0:0:14]} 26. Rb6 {[%emt 0:1:54]} a5 {[%emt 0:2:38]} 27. Rb5 {[%emt 0:0:6]} Bb4 {[%emt 0:2:28]} 28. a3 {[%emt 0:1:17]} Rc1+ {[%emt 0:4:44]} 29. Kg2 {[%emt 0:0:4]} Bd2 {[%emt 0:1:41]} 30. Rc5 {[%emt 0:1:40]} Rb1 {[%emt 0:0:40]} 31. Rc2 {[%emt 0:0:21]} Bc1 {[%emt 0:0:30]} 32. Bc5 {[%emt 0:1:33]} Kf7 {[%emt 0:0:29]} 33. b4 {[%emt 0:2:26]} Bxa3 {[%emt 0:0:10]} 34. bxa5 {[%emt 0:0:8]} Bxc5 {[%emt 0:0:5]} 35. Rxc5 {[%emt 0:0:5]} Ra1 {[%emt 0:0:9]} 36. Rb5 {[%emt 0:0:23]} 1/2-1/2

[Event "56th Biel Festival MTO 2023"]
[White "Giacomini,Hector"]
[Black "Erne,Raphael"]
[Site "Biel"]
[Round "8.46"]
[Annotator "ChessBase"]
[Result "1/2-1/2"]
[Date "2023.07.26"]
[WhiteElo "2126"]
[BlackElo "2077"]
[PlyCount "52"]
[TimeControl "60"]

1. Nf3 {[%emt 0:0:0]} Nf6 {[%emt 0:0:0]} 2. e3 {[%emt 0:0:0]} d5 {[%emt 0:0:0]} 3. d4 {[%emt 0:0:0]} Bg4 {[%emt 0:0:0]} 4. Nbd2 {[%emt 0:0:0]} e6 {[%emt 0:0:0]} 5. c4 {[%emt 0:0:0]} c6 {[%emt 0:0:0]} 6. Bd3 {[%emt 0:0:0]} Bd6 {[%emt 0:0:0]} 7. Qc2 {[%emt 0:0:0]} Nbd7 {[%emt 0:0:0]} 8. O-O {[%emt 0:0:0]} O-O {[%emt 0:0:0]} 9. b3 {[%emt 0:9:4]} Bxf3 {[%emt 0:20:28]} 10. Nxf3 {[%emt 0:4:14]} dxc4 {[%emt 0:1:58]} 11. Bxc4 {[%emt 0:5:41]} e5 {[%emt 0:4:43]} 12. dxe5 {[%emt 0:5:35]} Nxe5 {[%emt 0:0:21]} 13. Be2 {[%emt 0:5:16]} Nfg4 {[%emt 0:13:32]} 14. g3 {[%emt 0:12:23]} Nxf3+ {[%emt 0:16:25]} 15. Bxf3 {[%emt 0:0:5]} Be5 {[%emt 0:3:29]} 16. Bb2 {[%emt 0:5:38]} Bxb2 {[%emt 0:2:59]} 17. Qxb2 {[%emt 0:0:18]} Qf6 {[%emt 0:1:24]} 18. Qxf6 {[%emt 0:0:43]} Nxf6 {[%emt 0:0:7]} 19. Rfd1 {[%emt 0:0:24]} Rfd8 {[%emt 0:1:29]} 20. Kf1 {[%emt 0:0:47]} Kf8 {[%emt 0:2:55]} 21. Ke2 {[%emt 0:1:23]} Ke7 {[%emt 0:1:53]} 22. Bg2 {[%emt 0:1:23]} Rxd1 {[%emt 0:7:5]} 23. Rxd1 {[%emt 0:0:7]} Rd8 {[%emt 0:1:20]} 24. Rxd8 {[%emt 0:0:16]} Kxd8 {[%emt 0:3:53]} 25. f4 {[%emt 0:0:47]} Ke7 {[%emt 0:3:14]} 26. Kd3 {[%emt 0:0:41]} Ne8 {[%emt 0:5:16]} 1/2-1/2